Cogmind - Beta 15 @@@ ROGUE MODE // 2025.05.22 @ 20:27:29 Player: SUBSUB Result: Destroyed by AG-65557 with Assembled Focal Cannon Performance ------------- Evolutions (1) 500 Regions Visited (5) 1000 Robots Destroyed (40) 200 Value Destroyed (845) 845 Prototype IDs (10) 200 Alien Tech Used (0) 0 Bonus (1600) 1600 TOTAL SCORE: 4345 Bonus ------- Met Imprinter 300 Was Imprinted 300 Destroyed Z-Imprinter 1000 Cogmind --------- Core Integrity 0/400 Matter 74/300 Energy 75/100 System Corruption 0% Temperature Cool (12) Movement Core (750) Ox14 Location -7/Deep Caves Parts ------- > --- POWER (1) -------- Zionite Light DM Reactor > --- PROPULSION (2) --- Zionite Glidesys I > --- UTILITY (4) ------ Large Storage Unit Improved Targeting Computer Makeshift Light Armor Plating Makeshift Light Armor Plating > --- WEAPON (2) ------- Missile Launcher > --- INVENTORY (15) --- Structural Scanner Improved Signal Interpreter Salvage Targeting Computer Improved Targeting Computer Particle Charger Particle Charger Makeshift Hacking Suite Datajack Plasma Cutter RU-N14's Throwing Claymores (3) RU-N14's Throwing Claymores (2) Makeshift Axe Makeshift Sword Peak State ------------ > --- POWER ------------ Zionite Light DM Reactor > --- PROPULSION ------- Zionite Glidesys I > --- UTILITY ---------- Large Storage Unit Improved Targeting Computer Zionite Weapon Casing Makeshift Light Armor Plating > --- WEAPON ----------- Zionite Laser-S RU-N14's Throwing Claymores > --- INVENTORY -------- Zionite Light DM Reactor Structural Scanner Improved Signal Interpreter Salvage Targeting Computer Improved Targeting Computer Particle Charger Particle Charger Makeshift Light Armor Plating Makeshift Hacking Suite Datajack Plasma Cutter RU-N14's Throwing Claymores RU-N14's Throwing Claymores Makeshift Axe Makeshift Sword [Rating: 45] Favorites ----------- Power Reinforced Ion Engine Engine Reinforced Ion Engine Reactor Zionite Light DM Reactor Propulsion Wheel Leg Aluminum Leg Wheel Wheel Hover Unit Zionite Glidesys I Utility Large Storage Unit Device Seismic Detector Storage Large Storage Unit Processor Improved Targeting Computer Protection Makeshift Light Armor Plating Weapon Advanced Beam Cannon Energy Gun Zionite Laser-S Energy Cannon Advanced Beam Cannon Ballistic Gun Light Assault Rifle Launcher Missile Launcher Special Weapon RU-N14's Throwing Claymores Slashing Weapon Makeshift Axe Build | -11 -10 -9 -9 -7 -7 ------- Run | Yrd Mat Mat Min Zio Dee Slots Evolved 2 | . . 2 . . . Power . | . . . . . . Propulsion . | . . . . . . Utility 2 | . . 2 . . . Weapon . | . . . . . . Parts Attached 52 | 9 7 14 5 6 11 Power 6 | 1 1 2 . 1 1 Engine 5 | 1 1 2 . 1 . Core . | . . . . . . Reactor 1 | . . . . . 1 Propulsion 11 | 3 3 3 1 . 1 Treads . | . . . . . . Leg 1 | 1 . . . . . Wheel 9 | 2 3 3 1 . . Hover 1 | . . . . . 1 Flight . | . . . . . . Utility 15 | 2 1 5 2 1 4 Device 6 | 1 . 2 1 . 2 Storage 2 | 1 1 . . . . Processor 1 | . . . 1 . . Hackware . | . . . . . . Protection 6 | . . 3 . 1 2 Artifact . | . . . . . . Weapon 20 | 3 2 4 2 4 5 Energy Gun 2 | 1 . . . . 1 Energy Cannon 2 | . 1 1 . . . Ballistic Gun 6 | 2 . 3 1 . . Ballistic Cannon . | . . . . . . Launcher 2 | . . . 1 . 1 Special Weapon 6 | . 1 . . 2 3 Impact Weapon . | . . . . . . Slashing Weapon 2 | . . . . 2 . Piercing Weapon . | . . . . . . Special Melee Weapon . | . . . . . . Unidentified Prototypes 8 | . . 2 . 1 5 Parts Lost 11 | . . 3 4 . 4 Power 1 | . . . . . 1 Propulsion 5 | . . 1 2 . 2 Utility 3 | . . 1 1 . 1 Weapon 2 | . . 1 1 . . Highest Loss Streak 3 | . . 1 3 . 2 To Critical Strikes . | . . . . . . Average Backups 13 | 3 7 13 13 14 14 Power . | . . . 1 . . Propulsion . | 2 2 1 . . . Utility 6 | . 3 6 6 7 7 Weapon 3 | . . 4 4 5 4 Tool/Special . | . . . . . . Unused Backups 18 | . 2 4 1 2 9 Power 1 | . . . . . 1 Propulsion 2 | . . 2 . . . Utility 11 | . 2 1 1 . 7 Weapon 3 | . . 1 . 2 . Tool/Special 1 | . . . . . 1 Average Slot Usage (%) 94 | . 100 96 94 97 86 Engine 9 | . 14 11 11 11 1 Reactor 1 | . . . . . 7 Wheel 17 | . 28 19 18 22 4 Hover 1 | . . . . . 7 Device 14 | . 14 18 25 12 4 Storage 11 | . 14 11 11 11 11 Processor 5 | . . . 3 11 11 Protection 11 | . . 13 3 9 17 Energy Cannon 4 | . 6 11 2 . . Ballistic Gun 5 | . 20 7 11 . . Launcher 2 | . . . 7 . 7 Special Weapon 3 | . . 3 . . 10 Slashing Weapon 4 | . . . . 17 1 Peak Build Rating 45 | 7 8 17 18 29 45 Average Rating 20 | 5 7 14 16 23 36 On Entrance 13 | . 7 7 17 18 29 Naked Turns . | . . . . . . Heaviest Build 52 | 11 30 40 43 44 52 Greatest Support 26 | 20 26 20 20 20 20 Greatest Overweight (x) 17 | 1 1 3 4 2 17 Average Overweight (x) 1 | . . 1 2 1 4 Largest Inventory Capacity 15 | 8 15 15 15 15 15 Average Capacity 14 | 7 8 15 15 15 15 Most Carried 15 | 6 8 15 15 15 15 Average Carried 13 | 3 7 13 13 14 14 Final Capacity 15 | 8 15 15 15 15 15 Final Carried 15 | 6 8 15 13 15 13 Class Distribution -------------------- 84% | Mutant 15% | Scavenger-Mutant Dominant Class ---------------- Mutant | -10/Materials Mutant | -9/Materials Mutant | -9/Mines Mutant | -7/Zion Mutant | -7/Deep Caves Resources | -11 -10 -9 -9 -7 -7 ----------- Run | Yrd Mat Mat Min Zio Dee Matter Collected 1059 | 322 46 344 181 51 115 Remotely . | . . . . . . Salvage Created 1527 | 156 153 619 263 . 336 Parts 91 | 10 9 46 14 . 12 Haulers Intercepted 3 | . 1 2 . . . Recyclers Shooed 4 | . . 2 2 . . Parts Field Recycled . | . . . . . . Retrieved Matter . | . . . . . . Parts Self-Destructed . | . . . . . . Prevented . | . . . . . . Kills | -11 -10 -9 -9 -7 -7 ------- Run | Yrd Mat Mat Min Zio Dee Combat Hostiles Destroyed 33 | . 2 11 5 . 15 Guns 8 | . 2 1 4 . 1 Cannons 13 | . . 10 . . 3 AOE 11 | . . . . . 11 Classes Destroyed 12 | 2 2 6 . . 2 Worker 4 | . . 2 2 . . Builder 1 | . . 1 . . . Tunneler 3 | 3 . . . . . Hauler 3 | . 1 2 . . . Recycler 3 | 1 1 . 1 . . Operator 1 | . . 1 . . . Watcher 1 | . . 1 . . . Swarmer 8 | . 2 3 3 . . Grunt 2 | . . 2 . . . Sentry 8 | . . 6 2 . . Z-Light 5 | . . . . . 5 Assembled 9 | . . . . . 9 Best Kill Streak 4 | 2 3 3 3 . 4 Combat Bots Only 4 | . 2 3 3 . 4 Max Kills in Single Turn 1 | 1 1 1 1 . 1 Gunslinging . | . . . . . . Exploded 1 | . . . . . 1 Melee . | . . . . . . Uniques/NPCs Destroyed 1 | . . . . . 1 Z-Imprinter (-7/Deep Caves) Combat | -11 -10 -9 -9 -7 -7 -------- Run | Yrd Mat Mat Min Zio Dee Hostile Shots Fired 182 | . 17 71 41 . 53 Missed 55 | . 6 21 13 . 15 Hits 127 | . 11 50 28 . 38 Projectile 127 | . 11 50 28 . 38 Critical Strikes 3 | . . 2 1 . . Actively Blocked 1 | . . 1 . . . Damage Taken 2287 | . 85 660 342 . 1200 Core 441 | . 24 112 69 . 236 Absorbed by Shields 61 | . . . 18 . 43 Redirected to Shielding 97 | . . 28 14 . 55 Core Remaining (%) 95 | 100 90 . . . . Volleys Fired 172 | 23 14 65 42 . 28 Largest 2 | 2 2 2 2 . 2 Hottest 168 | 40 100 168 91 . 96 Shots Fired 259 | 39 27 114 46 . 33 Gun 160 | 39 26 48 42 . 5 Cannon 60 | . . 56 4 . . Launcher 14 | . . . . . 14 Special 25 | . 1 10 . . 14 Kinetic 148 | 32 26 48 42 . . Thermal 83 | 7 1 66 4 . 5 Explosive 28 | . . . . . 28 Electromagnetic . | . . . . . . Robot Hit Streak 14 | 5 13 14 7 . 4 Robot Miss Streak 5 | 2 5 3 2 . 2 Penetration Max . | . . . . . . Secondary Targets . | . . . . . . Shots Hit Robots 162 | 25 16 65 33 . 23 Core Hits 73 | 9 7 24 9 . 24 Critical Kills 1 | . . . 1 . . Critical Parts Destroyed . | . . . . . . Critical Strikes 2 | . . . 1 . 1 Meltdown 1 | . . . 1 . . Sever 1 | . . . . . 1 Melee Attacks 2 | . . . . . 2 Impact . | . . . . . . Slashing 2 | . . . . . 2 Piercing . | . . . . . . Sneak Attacks . | . . . . . . Combat Hostiles . | . . . . . . Follow-up Attacks . | . . . . . . Damage Inflicted 4152 | 206 131 1028 510 . 2277 Guns 1159 | 206 131 286 448 . 88 Cannons 780 | . . 718 62 . . Explosions 1695 | . . . . . 1695 Melee 41 | . . . . . 41 Ramming . | . . . . . . Kinetic 1017 | 152 131 286 448 . . Thermal 946 | 54 . 742 62 . 88 Explosive 1695 | . . . . . 1695 Electromagnetic . | . . . . . . Impact . | . . . . . . Slashing 494 | . . . . . 494 Piercing . | . . . . . . Highest Corruption 5 | . 1 5 5 5 . Average Corruption 4 | . 1 5 5 5 . Corruption Purged . | . . . . . . Corruption Blocked . | . . . . . . Effects 25 | . 1 16 6 2 . Message Errors 3 | . . 2 1 . . Matter Fused 6 | . 1 4 . 1 . Heat Flow Errors 3 | . . 2 . 1 . Energy Discharges 3 | . . 3 . . . Data Loss (minor) 6 | . . 3 3 . . Data Loss (major) 1 | . . 1 . . . Misfires 2 | . . 1 1 . . Weapon Failures 1 | . . . 1 . . Overload Shots . | . . . . . . Overflow Damage 152 | . . . . . 152 Projectiles 53 | . . . . . 53 Explosions 99 | . . . . . 99 Melee . | . . . . . . Knockbacks . | . . . . . . Impact . | . . . . . . Kinetic . | . . . . . . Secondary . | . . . . . . Self-Inflicted Damage 87 | . . . . . 87 Shots 5 | . . . . . 5 Rammed . | . . . . . . Targets Rammed . | . . . . . . Kicked . | . . . . . . Crushed . | . . . . . . Highest Temperature 507 | . 20 260 84 127 507 Average Temperature 173 | . 12 79 47 69 283 Received Heat Transfer 580 | . . 210 108 . 262 Effects 11 | . . . . . 11 Energy Bleed 4 | . . . . . 4 Interference 3 | . . . . . 3 Matter Decay 1 | . . . . . 1 Short Circuit 2 | . . . . . 2 Damage (minor) 1 | . . . . . 1 Siege Activations . | . . . . . . Martial Activations . | . . . . . . Shielding Activations . | . . . . . . Robots Disrupted . | . . . . . . Combat Hostiles . | . . . . . . Robots Corrupted . | . . . . . . Combat Hostiles . | . . . . . . Parts Fried . | . . . . . . Impact Corruptions . | . . . . . . Robots Melted 1 | . . . 1 . . Combat Hostiles 1 | . . . 1 . . Parts Melted 4 | . . 2 2 . . Heat Transferred 1803 | 125 . 1456 111 . 111 Parts Sabotaged . | . . . . . . Parts Stolen . | . . . . . . Parts Stripped . | . . . . . . Power Chain Reactions . | . . . . . . Alert | -11 -10 -9 -9 -7 -7 ------- Run | Yrd Mat Mat Min Zio Dee Maximum Alert Level . | . . . . . . Low Security (%) 100 | 100 100 100 100 . . Level 1 . | . . . . . . Level 2 . | . . . . . . Level 3 . | . . . . . . Level 4 . | . . . . . . Level 5 . | . . . . . . High Security . | . . . . . . Max Security . | . . . . . . Peak Influence 141 | 10 45 141 75 . . Initial 27 | . . . 27 . . Average 24 | . 8 34 19 . . Influence Increases 656 | 20 72 424 140 . . Destroy 0b10 Robot/C 360 | . 40 220 100 . . Destroy 0b10 Robot/NC 80 | 20 10 35 15 . . Destroy Leader 108 | . 12 86 10 . . Successful Hack 21 | . 9 12 . . . Destroy Structure 12 | . 1 11 . . . Partial Spotted 45 | . . 45 . . . Lose Combat Pursuer 30 | . . 15 15 . . Influence Decreases 656 | 20 72 353 191 20 . Entered New Map 64 | . . . 44 20 . Time Decay 555 | 20 72 326 137 . . Lost Part 37 | . . 27 10 . . Squads Dispatched 4 | . 2 2 . . . Investigation 2 | . 1 1 . . . Extermination . | . . . . . . Reinforcement 2 | . 1 1 . . . Assault . | . . . . . . Garrison . | . . . . . . Intercept . | . . . . . . Searches Triggered . | . . . . . . Construction Impeded . | . . . . . . Haulers Reinforced . | . . . . . . Active Scanning Responses . | . . . . . . Cargo Convoy Interrupts . | . . . . . . Stealth | -11 -10 -9 -9 -7 -7 --------- Run | Yrd Mat Mat Min Zio Dee Distress Signals 3 | . . 3 . . . Communications Jammed . | . . . . . . Distress Signals . | . . . . . . Times Spotted 50 | . 6 22 6 . 16 Peak Tracking Total 4 | . 3 4 3 . 3 Tactical Retreats 2 | . . 1 1 . . Traps | -11 -10 -9 -9 -7 -7 ------- Run | Yrd Mat Mat Min Zio Dee Traps Triggered . | . . . . . . Indirectly . | . . . . . . Trap Hack Attempts . | . . . . . . Triggered . | . . . . . . Disarmed 7 | . 1 6 . . . Reprogrammed . | . . . . . . Reused . | . . . . . . Traps Extracted . | . . . . . . Installed . | . . . . . . Triggered . | . . . . . . Machines | -11 -10 -9 -9 -7 -7 ---------- Run | Yrd Mat Mat Min Zio Dee Machines Disabled 6 | . . . 1 3 2 Max in Single Turn 1 | . . . 1 1 1 Machines Repaired . | . . . . . . Machines Dismantled 3 | . . . . 3 . Machines Sabotaged . | . . . . . . Overloaded Fab Kills . | . . . . . . Hacking | -11 -10 -9 -9 -7 -7 --------- Run | Yrd Mat Mat Min Zio Dee Machines Accessed 13 | . 5 8 . . . Terminals 13 | . 5 8 . . . Fabricators . | . . . . . . Repair Stations . | . . . . . . Recycling Units . | . . . . . . Scanalyzers . | . . . . . . Garrison Access . | . . . . . . Total Hacks 34 | . 14 20 . . . Successful 15 | . 5 10 . . . Failed 19 | . 9 10 . . . Catastrophic 1 | . 1 . . . . Database Lockouts . | . . . . . . Manual 25 | . 12 12 . 1 . Terminals 34 | . 14 20 . . . Fabricators . | . . . . . . Repair Stations . | . . . . . . Recycling Units . | . . . . . . Scanalyzers . | . . . . . . Garrison Access . | . . . . . . Terminal Hacks 8 | . 3 5 . . . Prototype ID Bank 1 | . . 1 . . . Disarm Traps 2 | . 1 1 . . . Zone Layout 5 | . 2 3 . . . Fabricator Hacks . | . . . . . . Repair Station Hacks . | . . . . . . Recycling Unit Hacks . | . . . . . . Scanalyzer . | . . . . . . Garrison Access Hacks . | . . . . . . Unauthorized Hacks 7 | . 2 5 . . . Terminals 7 | . 2 5 . . . Assimilate 1 | . . 1 . . . Botnet 6 | . 2 4 . . . Fabricators . | . . . . . . Repair Stations . | . . . . . . Recycling Units . | . . . . . . Scanalyzers . | . . . . . . Garrison Access . | . . . . . . Data Cores Recovered 1 | . . 1 . . . Used . | . . . . . . Hacking Detections 10 | . 4 6 . . . Full Trace Events 4 | . 3 1 . . . Feedback Events 1 | . 1 . . . . Corruption 1 | . 1 . . . . Feedback Blocked . | . . . . . . Robot Schematics Acquired . | . . . . . . Robots Built . | . . . . . . Authchips . | . . . . . . Time . | . . . . . . Total Robot Build Rating . | . . . . . . Part Schematics Acquired . | . . . . . . Parts Built . | . . . . . . Authchips . | . . . . . . Time . | . . . . . . Total Part Build Rating . | . . . . . . Parts Repaired . | . . . . . . Time . | . . . . . . Parts Recycled . | . . . . . . Recycled Matter . | . . . . . . Retrieved Matter . | . . . . . . Retrieved Components . | . . . . . . Parts Scanalyzed . | . . . . . . Part Schematics Acquired . | . . . . . . Parts Damaged . | . . . . . . Bothacking | -11 -10 -9 -9 -7 -7 ------------ Run | Yrd Mat Mat Min Zio Dee Used RIF Installer . | . . . . . . Robots Hacked . | . . . . . . Non-combat . | . . . . . . Combat . | . . . . . . Robot Hacks Applied . | . . . . . . Relay Couplers Released . | . . . . . . Fabnet Peak Effective % . | . . . . . . Robots Rewired . | . . . . . . Allies Hacked . | . . . . . . Hacks Repelled . | . . . . . . Allies | -11 -10 -9 -9 -7 -7 -------- Run | Yrd Mat Mat Min Zio Dee Total Allies 4 | . . . . 4 . Largest Group 4 | . . . . 4 3 Highest-Rated Group 156 | . . . . 156 116 Highest-Rated Ally 40 | . . . . 40 40 Total Orders . | . . . . . . Ally Attacks . | . . . . . . Total Damage . | . . . . . . Kills . | . . . . . . Allies Corrupted . | . . . . . . Allies Melted . | . . . . . . Intel | -11 -10 -9 -9 -7 -7 ------- Run | Yrd Mat Mat Min Zio Dee Active Infowar (turns) 1867 | 79 390 1153 245 . . Seismic 1867 | 79 390 1153 245 . . Robot Analysis Total . | . . . . . . Derelict Logs Recovered 4 | . . . 2 2 . Drone Launches . | . . . . . . Drone Recoveries . | . . . . . . Exploration | -11 -10 -9 -9 -7 -7 ------------- Run | Yrd Mat Mat Min Zio Dee Turns Passed 4188 | 186 390 1333 382 996 901 Spaces Moved 2785 | 103 349 871 256 911 295 Core 34 | 2 . . . . 32 Treads . | . . . . . . Legs 57 | 57 . . . . . Wheels 2603 | 44 349 871 256 911 172 Hover 91 | . . . . . 91 Flight . | . . . . . . Fastest Speed 50 | 50 80 95 95 95 110 Average Speed 113 | 106 84 100 110 95 248 Slowest Speed 900 | 190 95 125 140 110 900 Overloaded Moves . | . . . . . . Propulsion Burnouts . | . . . . . . Robots Hopped . | . . . . . . Potential Cave-ins . | . . . . . . Cave-ins Triggered . | . . . . . . Exploration Rate (%) 50 | 6 51 61 48 83 54 Regions Visited 5 Branch Regions 3 Pre-discovered Areas 3 | . . . 2 1 . Known Exits Taken . | . . . . . . Unknown Exits Taken 5 | 1 1 1 1 1 . Scrap Searched 4 | . . . . 4 . Spaces Dug 33 | . 1 9 . . 23 Terrain Destroyed 210 | . 1 9 . . 200 Melee . | . . . . . . Projectile 13 | . 1 9 . . 3 AOE 197 | . . . . . 197 Terrain Rammed . | . . . . . . Walls Destroyed . | . . . . . . Machines Disabled . | . . . . . . Actions | -11 -10 -9 -9 -7 -7 --------- Run | Yrd Mat Mat Min Zio Dee Total 3484 | 144 421 1204 307 986 422 Wait 366 | . 35 226 . 28 77 Move 2780 | 102 348 870 255 910 295 Hop . | . . . . . . Pick Up 40 | 8 7 15 2 6 2 Fast Attach 21 | 6 1 4 2 3 5 Attach 9 | 2 . 2 2 . 3 Detach 3 | 1 . . . 2 . Swap 29 | 1 7 11 2 3 5 Drop 35 | 1 9 11 2 7 5 Fire 172 | 23 14 65 42 . 28 Melee 2 | . . . . . 2 Ram . | . . . . . . Kick . | . . . . . . Crush . | . . . . . . Escape Stasis . | . . . . . . Rewire . | . . . . . . Trap . | . . . . . . Miscellaneous 27 | . . . . 27 . Route ------- -11/Scrapyard -10/Materials (discovered 2 exits: *Mat / [*Min]) -9/Materials (discovered 3 exits: [*Mat x2] / [*Min]) -9/Mines (discovered 3 exits: [*Mat x2] / *Zio) -7/Zion -7/Deep Caves (discovered 1 exit: [*Pro]) History --------- Turn | Location | Event 35 | -11/Scrapyard | Discovered new exit (range 16) 187 | -11/Scrapyard | Entered Materials 344 | -10/Materials | Build established: Mutant 408 | -10/Materials | Discovered new exit (range 9) 524 | -10/Materials | Discovered new exit (range 6) 577 | -10/Materials | Entered another Materials area 577 | -9/Materials | Evolved 2 slots: Utility x2 899 | -9/Materials | Discovered new exit (range 14) 1366 | -9/Materials | Discovered new exit (range 15) 1809 | -9/Materials | Discovered new exit (range 15) 1910 | -9/Materials | Entered Mines 1954 | -9/Mines | Discovered new exit (range 11) 2023 | -9/Mines | Lost 3 parts (2n1w) 2103 | -9/Mines | Discovered new exit (range 13) 2194 | -9/Mines | A Derelict revealed a hidden shortcut to a safe place 2292 | -9/Mines | Entered Zion 2385 | -7/Zion | System corruption cleaned by Quarantine Array 2536 | -7/Zion | Learned 4 Factory zone layouts 2941 | -7/Zion | Found Prototype Special Weapon 2944 | -7/Zion | Found Prototype Special Weapon 2946 | -7/Zion | Found Prototype Special Weapon 2949 | -7/Zion | Found Prototype Special Weapon 3093 | -7/Zion | Met Imprinter 3112 | -7/Zion | Imprinted 3114 | -7/Zion | Declared Zion's savior 3279 | -7/Zion | Discovered new exit (range 5) 3282 | -7/Zion | Saw the warning signs outside the Deep Caves entrance 3284 | -7/Zion | Identified RU-N14's Throwing Claymores (x4) 3288 | -7/Zion | Entered Deep Caves 3288 | -7/Deep Caves | Accompanied by 4 allies 3385 | -7/Deep Caves | Attacked by Z-Imprinter 3389 | -7/Deep Caves | Core integrity fell below 50% 3390 | -7/Deep Caves | Destroyed Z-Imprinter 3429 | -7/Deep Caves | Found Prototype Protection 3429 | -7/Deep Caves | Identified Zio. Weapon Casing 3551 | -7/Deep Caves | Z-Facility disabled 3805 | -7/Deep Caves | Discovered new exit (range 11) 4164 | -7/Deep Caves | Spotted AG-65557 4183 | -7/Deep Caves | Core integrity fell below 20% 4189 | -7/Deep Caves | Destroyed by AG-65557 with Assembled Focal Cannon Last Messages --------------- 03830_ RU-N14's Throwing Claymores temporarily disabled. 03830_ The unstable cave ceiling collapses. 03861_ Acquired 12 matter. 03872_ Machine disabled. 03872_ as-43357 destroyed. 03876_ The unstable cave ceiling collapses. 03879_ Zio. Glidesys I broken. 03879_ Overheating: Short circuit. 03882_ Zio. Light DM Reactor broken. 03882_ Overheating: Short circuit. 03884_ Overheating: RU-N14's Throwing Claymores damaged (-46). 03885_ Overheating: Matter decay (-29). 03892_ The unstable cave ceiling collapses. 04175_ AG-65557: "DSI9AT1D G8OHIBQ29FWG 26R186 QD12WHW8W33 TDK1 81FTS" 04182_ Destroyed Flexi-carbon Leg. 04182_ Destroyed Prototype Device. 04183_ AG-65557 GOLEM Unit beginning Prototype Device integration. 04184_ AG-65557 Prototype Device integration complete. 04185_ MT-J80(h) destroyed. 04185_ RU-N14's Throwing Claymores expended. Map ----- +----------------------------------------------------+ | ???????????????????????????????????????????????? | | ???????????????????????????????????????????????? | | ???????????????????????????????????????????????? | | ???????????????????????????????????????????????? | | ???????????????????????????????????????????????? | | ???????????????????????????????????????????????? | | ???????????????????????????????????????????????? | | ???????????????????????????????????????????????? | | ???????????????????????????????????????????????? | | ?????????????????????????????????? ????????????? | | ????????????????????? #?????? ????????????? | | ??????????????????? ! b #????? #???????????? | | ???????????????? #????? #???????????? | | ?????????????? * #????? #???????????? | | ???????????? ! !g #????? #???????????? | | ???????????? * h #????# #???????????? | | ??????????? ! ! = #????# #???? ?????? | | ??????????? g b #????# #??? ????# | | ?????????? = ##???# #???? ???# | | ?????????? h ! ] #??## #????# ???# | | ?????????? !!! ] #?## ##????# ?## | | ????????? #?# ##???# ## | | ????????? ##; #???# | | ????????" G ] #????# | | ??????????"% g ######## | | ????????" @ ## ##### | | ?????????" ##### # ## | | ????????" #??# | | ?????????" ##??# " | | ????????? ; # #???## ## " ##### | | ?????????? #### ## ## ##????#### #??? | | ??????????" #????# ?# ?###????????## #####??? | | ?????????? ???????#??# ?????????????####??????? | | ???????????????????????#???????????????????????? | | | | | | | | | | | | | | | | | | | | | | | | | | | | | | | | | +----------------------------------------------------+ Best States ------------- Heat Dissipation 38 Energy Generation 27 Energy Capacity 265 Matter Stores 300 Matter Capacity 300 Sight Range 16 Terrain Scan Density 10 Armor Coverage 200 Power Shielding 33 Propulsion Shielding 33 Weapon Shielding 100 Phase Shifting 5 Evasion (%) 55 Targeting Accuracy 6 Item Schematics ----------------- None Robot Schematics ------------------ None Fabricated ------------ Nothing Repaired ---------- Nothing Alien Tech Used ----------------- None Achievements -------------- None Challenges ------------ None Game ------ Seed SpreadHugeBattery Manual? 0 Play Time 00:39:50 Cumulative 38.9 hours Start 2025.05.22 @ 19:48:51 End 2025.05.22 @ 20:27:29 Sessions 1 Manual Loads 0 Difficulty Rogue Special Mode None Game No. 53 Rogue 53 Adventurer 0 Explorer 0 Win Type - Total 0 Types 0/0/0/0/0/0/0/0/0/0 Lore% 42 Gallery% 27 Achievement% 28 Wizard Run 0 Options --------- Layout 0 ASCII 0 Keyboard 1 Movement Vi Keybinds 0 Fullscreen 1 Font 18/SmallcapsGlow Map View 76x50 Zoom Use 0% Tactical HUD 1 Map Filters NONE Filters NONE Steam 1 RUN: 216b58c9-5b9d-4d18-bb8d-a700df616cf8